Cogmind - Beta 15 @@@ ROGUE MODE // 2025.08.13 @ 18:04:57 Player: Carter Result: Destroyed by G-34 Mercenary with Small Laser Performance ------------- Evolutions (1) 500 Regions Visited (2) 400 Robots Destroyed (52) 260 Value Destroyed (1080) 1080 Prototype IDs (3) 60 Alien Tech Used (0) 0 Bonus (0) 0 TOTAL SCORE: 2300 Bonus ------- None Cogmind --------- Core Integrity 0/400 Matter 242/300 Energy 100/100 System Corruption 0% Temperature Cool (15) Movement Walking (120) Location -9/Materials Parts ------- > --- POWER (1) -------- (None) > --- PROPULSION (4) --- Improved Aluminum Leg > --- UTILITY (2) ------ Small Storage Unit > --- WEAPON (2) ------- Improved Light Cannon > --- INVENTORY (8) ---- Beam Rifle Improved Medium Laser EMP Blaster EMP Blaster EMP Blaster EMP Blaster Mini Grenade Launcher Peak State ------------ > --- POWER ------------ Improved Ion Engine > --- PROPULSION ------- Aluminum Leg Improved Aluminum Leg > --- UTILITY ---------- Heat Sink Small Storage Unit > --- WEAPON ----------- Improved Medium Laser Improved Light Cannon > --- INVENTORY -------- Beam Rifle Light Cannon EMP Blaster EMP Blaster EMP Blaster EMP Blaster Mini Grenade Launcher Katana [Rating: 13] Favorites ----------- Power Ion Engine Engine Ion Engine Propulsion Aluminum Leg Leg Aluminum Leg Wheel Wheel Utility Small Storage Unit Device Heat Sink Storage Small Storage Unit Weapon EM Pulse Gun Energy Gun EM Pulse Gun Ballistic Gun Improved Assault Rifle Ballistic Cannon Improved Light Cannon Launcher Grenade Launcher Special Weapon Welding Torch Build | -11 -10 -9 ------- Run | Yrd Mat Mat Slots Evolved 2 | . . 2 Power . | . . . Propulsion 2 | . . 2 Utility . | . . . Weapon . | . . . Parts Attached 26 | 6 3 17 Power 4 | 1 . 3 Engine 4 | 1 . 3 Core . | . . . Reactor . | . . . Propulsion 7 | 2 . 5 Treads . | . . . Leg 5 | 2 . 3 Wheel 2 | . . 2 Hover . | . . . Flight . | . . . Utility 2 | 1 1 . Device 1 | . 1 . Storage 1 | 1 . . Processor . | . . . Hackware . | . . . Protection . | . . . Artifact . | . . . Weapon 13 | 2 2 9 Energy Gun 7 | 2 . 5 Energy Cannon . | . . . Ballistic Gun 1 | . . 1 Ballistic Cannon 3 | . . 3 Launcher 1 | . 1 . Special Weapon 1 | . 1 . Impact Weapon . | . . . Slashing Weapon . | . . . Piercing Weapon . | . . . Special Melee Weapon . | . . . Unidentified Prototypes 3 | . . 3 Parts Lost 11 | . 1 10 Power 3 | . . 3 Propulsion 3 | . . 3 Utility 1 | . . 1 Weapon 4 | . 1 3 Highest Loss Streak 4 | . 1 4 To Critical Strikes . | . . . Average Backups 4 | . . 5 Power . | . . . Propulsion . | . . . Utility . | . . 1 Weapon 3 | . . 4 Tool/Special . | . . . Unused Backups 10 | . . 10 Power . | . . . Propulsion . | . . . Utility 3 | . . 3 Weapon 7 | . . 7 Tool/Special . | . . . Average Slot Usage (%) 71 | . 91 68 Engine 5 | . 14 3 Leg 21 | . 28 20 Device 10 | . 7 10 Storage 11 | . 14 11 Energy Gun 15 | . 19 15 Ballistic Cannon 4 | . . 5 Launcher 1 | . 7 . Peak Build Rating 13 | 6 7 13 Average Rating 7 | 5 6 8 On Entrance 4 | . 6 7 Naked Turns . | . . . Heaviest Build 20 | 13 16 20 Greatest Support 30 | 20 20 30 Greatest Overweight (x) 3 | 3 . 3 Average Overweight (x) . | . . . Largest Inventory Capacity 8 | 8 8 8 Average Capacity 7 | 7 8 8 Most Carried 8 | . 2 8 Average Carried 4 | . . 5 Final Capacity 8 | 8 8 8 Final Carried 7 | . . 7 Class Distribution -------------------- 97% | Mutant Dominant Class ---------------- Mutant | -10/Materials Mutant | -9/Materials Resources | -11 -10 -9 ----------- Run | Yrd Mat Mat Matter Collected 747 | 171 144 432 Remotely . | . . . Salvage Created 1592 | . 114 1478 Parts 112 | . 10 102 Haulers Intercepted 2 | . 1 1 Recyclers Shooed 4 | . . 4 Parts Field Recycled . | . . . Retrieved Matter . | . . . Parts Self-Destructed . | . . . Prevented . | . . . Kills | -11 -10 -9 ------- Run | Yrd Mat Mat Combat Hostiles Destroyed 29 | . 1 28 Guns 8 | . 1 7 Cannons 16 | . . 16 AOE 5 | . . 5 Classes Destroyed 10 | . 4 6 Worker 6 | . 1 5 Builder 4 | . . 4 Tunneler 2 | . . 2 Hauler 2 | . 1 1 Recycler 4 | . . 4 Watcher 5 | . 2 3 Swarmer 8 | . . 8 Grunt 13 | . 1 12 Duelist 2 | . . 2 Sentry 6 | . . 6 Best Kill Streak 6 | . 2 6 Combat Bots Only 6 | . 1 6 Max Kills in Single Turn 2 | . 2 2 Gunslinging . | . . . Exploded 2 | . . 2 Melee . | . . . Uniques/NPCs Destroyed . | . . . Combat | -11 -10 -9 -------- Run | Yrd Mat Mat Hostile Shots Fired 152 | . 4 148 Missed 46 | . . 46 Hits 106 | . 4 102 Melee 7 | . . 7 Projectile 99 | . 4 95 AOE 1 | . . 1 Critical Strikes 8 | . . 8 Damage Taken 1451 | . 45 1406 Core 405 | . . 405 Absorbed by Shields . | . . . Regen/Repaired (Parts) 59 | . . 59 Core Remaining (%) 100 | 100 100 . Volleys Fired 99 | . 7 92 Largest 2 | . 2 2 Hottest 112 | . 80 112 Shots Fired 188 | . 13 175 Gun 112 | . 8 104 Cannon 65 | . . 65 Launcher 9 | . 3 6 Special 2 | . 2 . Kinetic 65 | . . 65 Thermal 72 | . 3 69 Explosive 9 | . 3 6 Electromagnetic 42 | . 7 35 Robot Hit Streak 16 | . 3 16 Robot Miss Streak 4 | . 3 4 Penetration Max . | . . . Secondary Targets . | . . . Shots Hit Robots 116 | . 7 109 Core Hits 68 | . 7 61 Critical Kills . | . . . Critical Parts Destroyed . | . . . Critical Strikes 3 | . . 3 Burn 3 | . . 3 Melee Attacks . | . . . Impact . | . . . Slashing . | . . . Piercing . | . . . Sneak Attacks . | . . . Combat Hostiles . | . . . Follow-up Attacks . | . . . Damage Inflicted 2454 | . 164 2290 Guns 1165 | . 72 1093 Cannons 790 | . . 790 Explosions 499 | . 92 407 Melee . | . . . Ramming . | . . . Kinetic 790 | . . 790 Thermal 861 | . . 861 Explosive 385 | . 92 293 Electromagnetic 418 | . 72 346 Impact . | . . . Slashing . | . . . Piercing . | . . . Highest Corruption . | . . . Average Corruption . | . . . Corruption Purged . | . . . Corruption Blocked . | . . . Overload Shots . | . . . Overflow Damage 17 | . . 17 Projectiles 17 | . . 17 Explosions . | . . . Melee . | . . . Knockbacks 8 | . . 8 Impact . | . . . Kinetic 6 | . . 6 Secondary 2 | . . 2 Self-Inflicted Damage 20 | . . 20 Shots 1 | . . 1 Rammed . | . . . Targets Rammed . | . . . Kicked . | . . . Crushed . | . . . Highest Temperature 26 | . 18 26 Average Temperature 8 | . 8 8 Received Heat Transfer 513 | . 24 489 Siege Activations . | . . . Martial Activations . | . . . Shielding Activations . | . . . Robots Disrupted . | . . . Combat Hostiles . | . . . Robots Corrupted . | . . . Combat Hostiles . | . . . Parts Fried . | . . . Impact Corruptions . | . . . Robots Melted . | . . . Combat Hostiles . | . . . Parts Melted 1 | . . 1 Heat Transferred 2237 | . . 2237 Parts Sabotaged . | . . . Parts Stolen . | . . . Parts Stripped . | . . . Power Chain Reactions 1 | . . 1 Alert | -11 -10 -9 ------- Run | Yrd Mat Mat Maximum Alert Level 1 | . . 1 Low Security (%) 86 | 100 100 83 Level 1 13 | . . 16 Level 2 . | . . . Level 3 . | . . . Level 4 . | . . . Level 5 . | . . . High Security . | . . . Max Security . | . . . Peak Influence 371 | . 32 371 Initial 9 | . . 9 Average 74 | . 10 91 Influence Increases 965 | . 82 883 Destroy 0b10 Robot/C 580 | . 20 560 Destroy 0b10 Robot/NC 115 | . 20 95 Destroy Leader 164 | . 6 158 Successful Hack 2 | . . 2 Disable Machine 30 | . 15 15 Destroy Structure 59 | . 21 38 Lose Combat Pursuer 15 | . . 15 Influence Decreases 618 | . 60 558 Entered New Map 13 | . . 13 Time Decay 526 | . 60 466 Lost Part 79 | . . 79 Squads Dispatched 3 | . . 3 Investigation . | . . . Extermination . | . . . Reinforcement 3 | . . 3 Assault . | . . . Garrison . | . . . Intercept . | . . . Searches Triggered . | . . . Construction Impeded 1 | . . 1 Haulers Reinforced . | . . . Active Scanning Responses . | . . . Cargo Convoy Interrupts . | . . . Stealth | -11 -10 -9 --------- Run | Yrd Mat Mat Distress Signals 1 | . 1 . Communications Jammed . | . . . Distress Signals . | . . . Times Spotted 41 | . 3 38 Peak Tracking Total 7 | . 2 7 Tactical Retreats 1 | . . 1 Traps | -11 -10 -9 ------- Run | Yrd Mat Mat Traps Triggered . | . . . Indirectly . | . . . Trap Hack Attempts . | . . . Triggered . | . . . Disarmed . | . . . Reprogrammed . | . . . Reused . | . . . Traps Extracted . | . . . Installed . | . . . Triggered . | . . . Machines | -11 -10 -9 ---------- Run | Yrd Mat Mat Machines Disabled 2 | . 1 1 Max in Single Turn 1 | . 1 1 Machines Repaired . | . . . Machines Dismantled . | . . . Machines Sabotaged . | . . . Overloaded Fab Kills . | . . . Hacking | -11 -10 -9 --------- Run | Yrd Mat Mat Machines Accessed 2 | . . 2 Terminals 1 | . . 1 Fabricators . | . . . Repair Stations 1 | . . 1 Recycling Units . | . . . Scanalyzers . | . . . Garrison Access . | . . . Total Hacks 3 | . . 3 Successful 2 | . . 2 Failed 1 | . . 1 Catastrophic . | . . . Database Lockouts . | . . . Manual . | . . . Terminals 1 | . . 1 Fabricators . | . . . Repair Stations 2 | . . 2 Recycling Units . | . . . Scanalyzers . | . . . Garrison Access . | . . . Terminal Hacks . | . . . Fabricator Hacks . | . . . Repair Station Hacks 2 | . . 2 Scan Component 1 | . . 1 Repair 1 | . . 1 Recycling Unit Hacks . | . . . Scanalyzer . | . . . Garrison Access Hacks . | . . . Unauthorized Hacks . | . . . Terminals . | . . . Fabricators . | . . . Repair Stations . | . . . Recycling Units . | . . . Scanalyzers . | . . . Garrison Access . | . . . Data Cores Recovered . | . . . Used . | . . . Hacking Detections . | . . . Full Trace Events . | . . . Feedback Events . | . . . Feedback Blocked . | . . . Robot Schematics Acquired . | . . . Robots Built . | . . . Authchips . | . . . Time . | . . . Total Robot Build Rating . | . . . Part Schematics Acquired . | . . . Parts Built . | . . . Authchips . | . . . Time . | . . . Total Part Build Rating . | . . . Parts Repaired 1 | . . 1 Time 26 | . . 26 Parts Recycled . | . . . Recycled Matter . | . . . Retrieved Matter . | . . . Retrieved Components . | . . . Parts Scanalyzed . | . . . Part Schematics Acquired . | . . . Parts Damaged . | . . . Bothacking | -11 -10 -9 ------------ Run | Yrd Mat Mat Used RIF Installer . | . . . Robots Hacked . | . . . Non-combat . | . . . Combat . | . . . Robot Hacks Applied . | . . . Relay Couplers Released . | . . . Fabnet Peak Effective % . | . . . Robots Rewired . | . . . Allies Hacked . | . . . Hacks Repelled . | . . . Allies | -11 -10 -9 -------- Run | Yrd Mat Mat Total Allies . | . . . Largest Group . | . . . Highest-Rated Group . | . . . Highest-Rated Ally . | . . . Total Orders . | . . . Ally Attacks . | . . . Total Damage . | . . . Kills . | . . . Allies Corrupted . | . . . Allies Melted . | . . . Intel | -11 -10 -9 ------- Run | Yrd Mat Mat Active Infowar (turns) . | . . . Robot Analysis Total . | . . . Derelict Logs Recovered . | . . . Drone Launches . | . . . Drone Recoveries . | . . . Exploration | -11 -10 -9 ------------- Run | Yrd Mat Mat Turns Passed 1678 | 124 213 1341 Spaces Moved 1018 | 85 153 780 Core 21 | 12 . 9 Treads . | . . . Legs 997 | 73 153 771 Wheels . | . . . Hover . | . . . Flight . | . . . Fastest Speed 50 | 50 120 120 Average Speed 123 | 136 120 122 Slowest Speed 200 | 200 120 200 Overloaded Moves . | . . . Propulsion Burnouts . | . . . Robots Hopped . | . . . Potential Cave-ins . | . . . Cave-ins Triggered . | . . . Exploration Rate (%) 30 | 4 33 55 Regions Visited 2 Branch Regions . Pre-discovered Areas . | . . . Known Exits Taken . | . . . Unknown Exits Taken 2 | 1 1 . Scrap Searched . | . . . Spaces Dug 8 | . . 8 Terrain Destroyed 56 | . 19 37 Melee . | . . . Projectile 2 | . . 2 AOE 54 | . 19 35 Terrain Rammed . | . . . Walls Destroyed . | . . . Machines Disabled . | . . . Actions | -11 -10 -9 --------- Run | Yrd Mat Mat Total 1249 | 90 168 991 Wait 68 | . 3 65 Move 1016 | 84 152 780 Hop . | . . . Pick Up 19 | . 2 17 Fast Attach 16 | 6 . 10 Attach 7 | . 2 5 Detach 4 | . . 4 Swap 7 | . 2 5 Drop 13 | . . 13 Fire 99 | . 7 92 Melee . | . . . Ram . | . . . Kick . | . . . Crush . | . . . Escape Stasis . | . . . Rewire . | . . . Trap . | . . . Miscellaneous . | . . . Route ------- -11/Scrapyard -10/Materials -9/Materials (discovered 1 exit: [*Mat]) History --------- Turn | Location | Event 11 | -11/Scrapyard | Discovered new exit (range 16) 125 | -11/Scrapyard | Entered Materials 306 | -10/Materials | Discovered new exit (range 15) 308 | -10/Materials | Build established: Mutant 338 | -10/Materials | Entered another Materials area 338 | -9/Materials | Evolved 2 slots: Propulsion x2 681 | -9/Materials | Discovered new exit (range 7) 1111 | -9/Materials | Lost 4 parts (1p2n1w) 1381 | -9/Materials | Repaired Aluminum Leg 1423 | -9/Materials | Core integrity fell below 50% 1658 | -9/Materials | Core integrity fell below 20% 1679 | -9/Materials | Destroyed by G-34 Mercenary with Small Laser Last Messages --------------- 01596_ R-06 Scavenger collects Katana. 01598_ K-01 Serf collects debris. 01602_ R-06 Scavenger collects Beam Rifle. 01602_ K-01 Serf collects debris. 01612_ G-34 Mercenary destroyed. 01617_ Acquired 8 matter. 01638_ Aluminum Leg destroyed. 01643_ G-34 Mercenary destroyed. 01644_ Acquired 4 matter. 01651_ S-10 Pest destroyed. 01658_ S-10 Pest knocked back. 01661_ Heat Sink destroyed. 01661_ Destroyed Lgt. Ion Engine. 01661_ S-10 Pest destroyed. 01665_ Imp. Ion Engine destroyed. 01673_ Critical hit (Burn: +37). 01673_ R-06 Scavenger collects Ion Engine. 01675_ Acquired 14 matter. 01676_ Lgt. Cannon destroyed. 01678_ G-34 Mercenary knocked back. Map ----- +----------------------------------------------------+ | """#???????????????? #????????????? | | * R"#??????????????? #????????????? | | *"""#????????###???? #??+?????????? | | [=]%##########T##### #?? ?????????? | | [[%[# ^ ^ ### ##???????? | | ##+## ^ #???????? | | =% % #???????? | | ## %""" ^""" #???????? | | ?#%%= """ """ !####### #???????? | | ##!### """ """ #?????# #???????? | | # = ## #?????# #???????? | | ## ! #?????# +???????? | | # ## % #?????# #???????? | | ###### #######+#####??# #???????? | | ?????# #??# #??# #???????? | | ?????# #??# #### #???????? | | ?????+ ??+ %+ % #???????? | | ?????# #??# #### #???????? | | ?????# #??# ![[#??## ##???????? | | ?????##+##??# ![ #???#o#????????? | | ????????????# [[ #?###%###??????? | | ????????????# [ %#?# a #??????? | | ????????????# !*=#?# r #??????? | | ????????????#######%##?# +??????? | | ??????????????????###??# %%% #??????? | | ???????????????????????#*@=* #??????? | | ???????????????????????##Y[%##??????? | | ????????????????????????#= g#???????? | | ????????????????????????+ % ;#??????? | | ????????????????????????# ##??????? | | ????????????????????????# u #???????? | | ????????????????????????# #???????? | | ????????????????????????# #???????? | | ????????????????????????# #???????? | | ????????????????????????? #???????? | | ????????????????????????? #???????? | | ????????????????????????? #???????? | | ????????????????????????? % #???????? | | ????????????????????????? +???????? | | ????????????????????????? #???????? | | ????????????????????????? ????????? | | ????????????????????????????????????? | | ????????????????????????????????????? | | ????????????????????????????????????? | | ????????????????????????????????????? | | ????????????????????????????????????? | | ????????????????????????????????????? | | ????????????????????????????????????? | | ????????????????????????????????????? | | ????????????????????????????????????? | +----------------------------------------------------+ Best States ------------- Heat Dissipation 38 Energy Generation 12 Energy Capacity 265 Matter Stores 300 Matter Capacity 300 Sight Range 16 Terrain Scan Density 10 Evasion (%) 55 Item Schematics ----------------- None Robot Schematics ------------------ None Fabricated ------------ Nothing Repaired ---------- Aluminum Leg | 34% | -9/Materials Alien Tech Used ----------------- None Achievements -------------- Part-time Mechanic Challenges ------------ None Game ------ Seed GhostCommCompactor Manual? 0 Play Time 00:24:42 Cumulative 4.0 hours Start 2025.08.13 @ 19:05:54 End 2025.08.13 @ 18:04:57 Sessions 2 Manual Loads 0 Difficulty Rogue Special Mode None Game No. 4 Rogue 4 Adventurer 0 Explorer 0 Win Type - Total 0 Types 0/0/0/0/0/0/0/0/0/0 Lore% 0 Gallery% 9 Achievement% 8 Wizard Run 0 Options --------- Layout 2 ASCII 0 Keyboard 1 Movement Vi Keybinds 0 Fullscreen 1 Font 24/Smallcaps Map View 25x22 Zoom Use 60% Tactical HUD 1 Map Filters NONE Filters NONE Steam 1 RUN: 03c518d0-b5b5-4d86-8f05-7ee26c5094e1